[Event "African Games Rapid Open 2019"]
[Site "Casablanca"]
[Date "2019.08.26"]
[Round "2.15"]
[White "Mwale, Joseph"]
[Black "Naipal, Hoolan"]
[Result "1-0"]
[ECO "E01"]
[WhiteElo "2231"]
[BlackElo "1785"]
[Annotator "NA"]
[PlyCount "65"]
[EventDate "2019.08.26"]
[EventType "team-tourn"]
[EventCountry "MAR"]
[SourceTitle "playchess.com"]
[Source "ChessBase"]
[SourceQuality "1"]
[TimeControl "900+10"]

1. d4 {[%emt 0:00:00]} Nf6 {[%emt 0:00:00]} 2. c4 {[%emt 0:00:00]} e6 {[%emt 0:00:00]} 3. g3 {[%emt 0:00:00]} d5 {[%emt 0:00:11]} 4. Bg2 {[%emt 0:00:00]} Bb4+ {[%emt 0:00:02]} 5. Bd2 {[%emt 0:00:07]} Be7 {[%emt 0:00:02]} 6. Qc2 {[%emt 0:00:12]} c6 {[%emt 0:00:29]} 7. Nf3 {[%emt 0:00:02]} O-O {[%emt 0:00:10]} 8. O-O {[%emt 0:00:02]} Nbd7 {[%emt 0:00:20]} 9. Nc3 {[%emt 0:00:29]} dxc4 {[%emt 0:00:44]} 10. a4 {[%emt 0:00:04]} Qc7 {[%emt 0:05:15]} 11. e4 {[%emt 0:00:45]} e5 {[%emt 0:01:23]} 12. dxe5 {[%emt 0:01:25]} Nxe5 {[%emt 0:00:05]} 13. Bf4 {[%emt 0:00:02]} Bd6 {[%emt 0:01:03]} 14. Nd4 {[%emt 0:01:44]} Ng6 {[%emt 0:02:16]} 15. Bg5 {[%emt 0:01:27]} h6 {[%emt 0:01:09]} 16. Bxf6 {[%emt 0:00:41]} gxf6 {[%emt 0:00:02]} 17. Nf5 {[%emt 0:00:05]} Bxf5 {[%emt 0:00:07]} 18. exf5 {[%emt 0:00:01]} Ne5 {[%emt 0:00:14]} 19. Rad1 {[%emt 0:00:36]} Kg7 {[%emt 0:00:32]} 20. Rd4 {[%emt 0:00:41]} Rh8 {[%emt 0:00:24]} 21. Ne4 {[%emt 0:00:53]} Be7 {[%emt 0:00:06]} 22. f4 {[%emt 0:00:08]} Ng4 {[%emt 0:00:35]} 23. Qe2 {[%emt 0:01:09]} h5 {[%emt 0:00:01]} 24. Kh1 {[%emt 0:01:31]} b5 {[%emt 0:01:21]} 25. axb5 {[%emt 0:01:24]} cxb5 {[%emt 0:00:40]} 26. Nc3 {[%emt 0:00:02]} Rae8 {[%emt 0:00:54]} 27. Re4 {[%emt 0:00:03]} Qc5 {[%emt 0:00:29]} 28. Nd1 {[%emt 0:02:42]} a5 {[%emt 0:00:36]} 29. Re1 {[%emt 0:00:03]} b4 {[%emt 0:00:14]} 30. h3 {[%emt 0:00:48]} c3 {[%emt 0:00:09]} 31. bxc3 {[%emt 0:00:19]} bxc3 {[%emt 0:00:02]} 32. Rc4 {[%emt 0:00:14]} Qxf5 {[%emt 0:00:13]} 33. Be4 {[%emt 0:00:26]} 1-0

[Event "African Games Rapid Open 2019"]
[Site "Casablanca"]
[Date "2019.08.26"]
[Round "2.16"]
[White "Hassan, Abderrahmane"]
[Black "Beukes, Dante M"]
[Result "0-1"]
[ECO "A45"]
[WhiteElo "1786"]
[BlackElo "2130"]
[Annotator "NA"]
[PlyCount "84"]
[EventDate "2019.08.26"]
[EventType "team-tourn"]
[EventCountry "MAR"]
[SourceTitle "playchess.com"]
[Source "ChessBase"]
[SourceQuality "1"]
[TimeControl "900+10"]

1. d4 Nf6 2. Nc3 d5 3. Bf4 g6 4. e3 {[%emt 0:00:09]} Bg7 {[%emt 0:00:14]} 5. h4 {[%emt 0:00:16]} h5 {[%emt 0:00:25]} 6. Nf3 {[%emt 0:00:25]} Bg4 {[%emt 0:00:10]} 7. Be2 {[%emt 0:00:01]} O-O {[%emt 0:00:04]} 8. Ne5 {[%emt 0:01:20]} Bxe2 {[%emt 0:00:06]} 9. Qxe2 {[%emt 0:00:10]} c5 {[%emt 0:00:16]} 10. O-O-O {[%emt 0:00:16]} Nc6 {[%emt 0:00:38]} 11. f3 {[%emt 0:01:03]} Rc8 {[%emt 0:00:52]} 12. g4 {[%emt 0:01:31]} cxd4 {[%emt 0:02:51]} 13. exd4 {[%emt 0:00:15]} Na5 {[%emt 0:00:49]} 14. Qe3 {[%emt 0:03:31]} Nc4 {[%emt 0:01:53]} 15. Nxc4 {[%emt 0:00:03]} Rxc4 {[%emt 0:00:02]} 16. Bh6 {[%emt 0:00:11]} Qc7 {[%emt 0:04:14]} 17. Bxg7 {[%emt 0:00:14]} Kxg7 {[%emt 0:00:02]} 18. Rd2 {[%emt 0:01:42]} e6 {[%emt 0:00:21]} 19. Rg1 {[%emt 0:03:09]} a6 {[%emt 0:01:36]} 20. gxh5 {[%emt 0:02:53]} Nxh5 {[%emt 0:00:09]} 21. Qg5 {[%emt 0:00:36]} Rh8 {[%emt 0:00:10]} 22. Ne2 {[%emt 0:00:31]} Qd8 {[%emt 0:02:01]} 23. Qe5+ {[%emt 0:00:13]} Qf6 {[%emt 0:00:01]} 24. Qxf6+ {[%emt 0:00:09]} Nxf6 {[%emt 0:00:05]} 25. Rh1 {[%emt 0:00:15]} Ne8 {[%emt 0:00:39]} 26. Ng3 {[%emt 0:00:08]} Nd6 {[%emt 0:00:02]} 27. h5 {[%emt 0:00:13]} g5 {[%emt 0:00:14]} 28. b3 {[%emt 0:00:06]} Rc3 {[%emt 0:00:08]} 29. Rf1 {[%emt 0:00:10]} Nf5 {[%emt 0:00:10]} 30. Nxf5+ {[%emt 0:00:03]} exf5 {[%emt 0:00:01]} 31. Kb2 {[%emt 0:00:01]} Re3 {[%emt 0:00:23]} 32. Rh2 {[%emt 0:00:20]} Kh6 {[%emt 0:00:21]} 33. Kc1 {[%emt 0:00:13]} Rc8 {[%emt 0:00:16]} 34. Kd2 {[%emt 0:00:18]} f4 {[%emt 0:00:10]} 35. Rh3 {[%emt 0:00:13]} f5 {[%emt 0:00:16]} 36. Rh2 {[%emt 0:00:05]} Rcc3 {[%emt 0:00:07]} 37. Rhf2 {[%emt 0:00:04]} Kxh5 {[%emt 0:00:07]} 38. Rh1+ {[%emt 0:00:12]} Kg6 {[%emt 0:00:01]} 39. Rhf1 {[%emt 0:00:08]} b5 {[%emt 0:00:12]} 40. a3 {[%emt 0:00:22]} a5 {[%emt 0:00:01]} 41. Kc1 {[%emt 0:00:06]} a4 {[%emt 0:00:08]} 42. Kb2 {[%emt 0:00:04]} axb3 {[%emt 0:00:01]} 0-1

[Event "African Games Rapid Open 2019"]
[Site "Casablanca"]
[Date "2019.08.26"]
[Round "2.17"]
[White "Eichab, Charles"]
[Black "Asante Debesai Zerabruk"]
[Result "0-1"]
[ECO "A20"]
[WhiteElo "2016"]
[BlackElo "1712"]
[Annotator "NA"]
[PlyCount "130"]
[EventDate "2019.08.26"]
[EventType "team-tourn"]
[EventCountry "MAR"]
[SourceTitle "playchess.com"]
[Source "ChessBase"]
[SourceQuality "1"]
[TimeControl "900+10"]

1. c4 {[%emt 0:00:00]} e5 {[%emt 0:00:00]} 2. g3 {[%emt 0:00:00]} Nf6 {[%emt 0:00:00]} 3. Bg2 {[%emt 0:00:00]} d5 {[%emt 0:00:00]} 4. cxd5 {[%emt 0:00:09]} Nxd5 {[%emt 0:00:00]} 5. Nc3 {[%emt 0:00:01]} Be6 {[%emt 0:00:00]} 6. d3 {[%emt 0:00:26]} f6 {[%emt 0:00:00]} 7. Nf3 {[%emt 0:00:21]} Nc6 {[%emt 0:00:05]} 8. O-O {[%emt 0:00:03]} Bc5 {[%emt 0:00:06]} 9. a3 {[%emt 0:00:27]} a5 {[%emt 0:00:01]} 10. Bd2 {[%emt 0:00:02]} O-O {[%emt 0:00:02]} 11. Rc1 {[%emt 0:00:11]} Ba7 {[%emt 0:02:14]} 12. Ne4 {[%emt 0:00:36]} Qe7 {[%emt 0:00:26]} 13. Qa4 {[%emt 0:04:06]} Nd4 {[%emt 0:02:18]} 14. Nxd4 {[%emt 0:01:08]} Bxd4 {[%emt 0:00:02]} 15. Qc2 {[%emt 0:01:16]} c6 {[%emt 0:01:45]} 16. Nc5 {[%emt 0:00:57]} Bxc5 {[%emt 0:01:13]} 17. Qxc5 {[%emt 0:00:02]} Qc7 {[%emt 0:01:13]} 18. Rfd1 {[%emt 0:01:09]} a4 {[%emt 0:00:11]} 19. e4 {[%emt 0:01:27]} Ne7 {[%emt 0:00:13]} 20. Bb4 {[%emt 0:00:26]} Rfe8 {[%emt 0:00:28]} 21. d4 {[%emt 0:00:03]} exd4 {[%emt 0:01:13]} 22. Qxd4 {[%emt 0:01:10]} Ng6 {[%emt 0:01:53]} 23. Bd6 {[%emt 0:00:20]} Qf7 {[%emt 0:00:14]} 24. f4 {[%emt 0:00:16]} Bb3 {[%emt 0:00:21]} 25. Rd2 {[%emt 0:00:09]} Rad8 {[%emt 0:00:15]} 26. Kf2 {[%emt 0:01:32]} Rd7 {[%emt 0:00:33]} 27. Qb4 {[%emt 0:00:43]} Nf8 {[%emt 0:01:41]} 28. Bh3 {[%emt 0:00:55]} Ne6 {[%emt 0:00:14]} 29. Kg1 {[%emt 0:00:25]} h5 {[%emt 0:00:19]} 30. e5 {[%emt 0:00:42]} Rc8 {[%emt 0:01:04]} 31. f5 {[%emt 0:00:31]} Ng5 {[%emt 0:00:01]} 32. e6 {[%emt 0:00:06]} Nxh3+ {[%emt 0:00:02]} 33. Kg2 {[%emt 0:00:04]} Bxe6 {[%emt 0:00:06]} 34. fxe6 {[%emt 0:00:13]} Qxe6 {[%emt 0:00:01]} 35. Rcd1 {[%emt 0:00:38]} Ng5 {[%emt 0:00:13]} 36. Bf4 {[%emt 0:00:05]} Rxd2+ {[%emt 0:00:07]} 37. Rxd2 {[%emt 0:00:14]} Qe4+ {[%emt 0:00:03]} 38. Qxe4 {[%emt 0:00:06]} Nxe4 {[%emt 0:00:02]} 39. Rd7 {[%emt 0:00:12]} Nc5 {[%emt 0:00:06]} 40. Rd4 {[%emt 0:00:17]} b5 {[%emt 0:00:01]} 41. Rd6 {[%emt 0:00:04]} Kf7 {[%emt 0:00:11]} 42. Be3 {[%emt 0:00:02]} Ne4 {[%emt 0:00:08]} 43. Rd7+ {[%emt 0:00:02]} Kg6 {[%emt 0:00:09]} 44. Kf3 {[%emt 0:00:07]} Ng5+ {[%emt 0:00:02]} 45. Ke2 {[%emt 0:00:07]} Nf7 {[%emt 0:00:14]} 46. Bf4 {[%emt 0:00:29]} Re8+ {[%emt 0:00:18]} 47. Kf2 {[%emt 0:00:08]} Rc8 {[%emt 0:00:07]} 48. Ke2 {[%emt 0:00:03]} Re8+ {[%emt 0:00:03]} 49. Kf2 {[%emt 0:00:02]} Ne5 {[%emt 0:00:21]} 50. Bxe5 {[%emt 0:00:36]} Rxe5 {[%emt 0:00:09]} 51. Rd6 {[%emt 0:00:05]} Rc5 {[%emt 0:00:04]} 52. Rd2 {[%emt 0:00:03]} Kf5 {[%emt 0:00:05]} 53. Kf3 {[%emt 0:00:03]} Rc4 {[%emt 0:00:09]} 54. h3 {[%emt 0:00:07]} g6 {[%emt 0:00:08]} 55. Kf2 {[%emt 0:00:11]} c5 {[%emt 0:00:05]} 56. Kf3 {[%emt 0:00:08]} b4 {[%emt 0:00:01]} 57. axb4 {[%emt 0:00:11]} cxb4 {[%emt 0:00:00]} 58. Rd5+ Ke6 59. Ra5 {[%emt 0:00:10]} a3 {[%emt 0:00:08]} 60. bxa3 {[%emt 0:00:03]} Rc3+ {[%emt 0:00:00]} 61. Kf2 {[%emt 0:00:15]} bxa3 {[%emt 0:00:01]} 62. h4 {[%emt 0:00:19]} Rc2+ {[%emt 0:00:01]} 63. Kf3 {[%emt 0:00:02]} a2 {[%emt 0:00:01]} 64. g4 {[%emt 0:00:41]} hxg4+ {[%emt 0:00:08]} 65. Kxg4 {[%emt 0:00:01]} g5 {[%emt 0:00:20]} 0-1

[Event "African Games Rapid Open 2019"]
[Site "Casablanca"]
[Date "2019.08.26"]
[Round "2.18"]
[White "Kouya, Tyeoulou Bernardin F"]
[Black "Ebosse, Kingue Victor Patric"]
[Result "0-1"]
[ECO "A48"]
[WhiteElo "1770"]
[BlackElo "2055"]
[Annotator "NA"]
[PlyCount "76"]
[EventDate "2019.08.26"]
[EventType "team-tourn"]
[EventCountry "MAR"]
[SourceTitle "playchess.com"]
[Source "ChessBase"]
[SourceQuality "1"]
[TimeControl "900+10"]

1. d4 {[%emt 0:00:00]} Nf6 {[%emt 0:00:00]} 2. Nf3 {[%emt 0:00:00]} g6 {[%emt 0:00:00]} 3. Bg5 {[%emt 0:00:00]} Bg7 {[%emt 0:00:00]} 4. Nbd2 {[%emt 0:00:01]} O-O {[%emt 0:00:04]} 5. c3 {[%emt 0:00:04]} d6 {[%emt 0:00:04]} 6. e4 {[%emt 0:00:06]} Nc6 {[%emt 0:00:03]} 7. Bd3 {[%emt 0:00:03]} e5 {[%emt 0:00:03]} 8. d5 {[%emt 0:00:18]} Ne7 {[%emt 0:00:02]} 9. b4 {[%emt 0:00:44]} Nh5 {[%emt 0:00:37]} 10. c4 {[%emt 0:00:38]} h6 {[%emt 0:00:06]} 11. Bh4 {[%emt 0:00:06]} Nf4 {[%emt 0:00:05]} 12. Bf1 {[%emt 0:00:08]} g5 {[%emt 0:00:07]} 13. Bg3 {[%emt 0:00:05]} Neg6 {[%emt 0:00:04]} 14. h3 {[%emt 0:00:40]} f5 {[%emt 0:00:04]} 15. Qb3 {[%emt 0:00:46]} fxe4 {[%emt 0:00:12]} 16. Nxe4 {[%emt 0:00:02]} Bf5 {[%emt 0:00:05]} 17. Qe3 {[%emt 0:00:38]} Kh8 {[%emt 0:00:45]} 18. Rc1 {[%emt 0:00:59]} b5 {[%emt 0:00:07]} 19. Bxf4 {[%emt 0:01:59]} exf4 {[%emt 0:00:08]} 20. Qd3 {[%emt 0:00:17]} Bxe4 {[%emt 0:00:07]} 21. Qb3 {[%emt 0:00:41]} Re8 {[%emt 0:00:09]} 22. Kd2 {[%emt 0:00:08]} bxc4 {[%emt 0:00:41]} 23. Bxc4 {[%emt 0:00:03]} a5 {[%emt 0:00:08]} 24. b5 {[%emt 0:00:05]} a4 {[%emt 0:00:01]} 25. Qd1 {[%emt 0:00:14]} c6 {[%emt 0:00:26]} 26. Qf1 {[%emt 0:01:09]} Qa5+ {[%emt 0:00:59]} 27. Kd1 {[%emt 0:00:02]} cxb5 {[%emt 0:01:56]} 28. Bxb5 {[%emt 0:00:03]} Rab8 {[%emt 0:01:00]} 29. Bxe8 {[%emt 0:00:19]} Bxf3+ {[%emt 0:00:14]} 30. gxf3 {[%emt 0:00:07]} Qxd5+ {[%emt 0:00:07]} 31. Ke1 {[%emt 0:00:49]} Rxe8+ {[%emt 0:00:57]} 32. Qe2 {[%emt 0:00:01]} Rxe2+ {[%emt 0:00:11]} 33. Kxe2 {[%emt 0:00:02]} Ne5 {[%emt 0:00:11]} 34. Rc8+ {[%emt 0:00:23]} Kh7 {[%emt 0:00:03]} 35. Rhc1 {[%emt 0:00:02]} Qxf3+ {[%emt 0:00:09]} 36. Kf1 {[%emt 0:00:05]} Qxh3+ {[%emt 0:00:04]} 37. Ke2 {[%emt 0:00:06]} Qd3+ {[%emt 0:00:08]} 38. Ke1 {[%emt 0:00:07]} Nf3# 0-1

[Event "African Games Rapid Open 2019"]
[Site "Casablanca"]
[Date "2019.08.26"]
[Round "2.19"]
[White "Sang, Ricky"]
[Black "Kourakoumba, Florent"]
[Result "0-1"]
[ECO "A40"]
[WhiteElo "1971"]
[BlackElo "1677"]
[Annotator "NA"]
[PlyCount "202"]
[EventDate "2019.08.26"]
[EventType "team-tourn"]
[EventCountry "MAR"]
[SourceTitle "playchess.com"]
[Source "ChessBase"]
[SourceQuality "1"]
[TimeControl "900+10"]

1. d4 {[%emt 0:00:00]} e6 {[%emt 0:00:00]} 2. Bf4 {[%emt 0:00:00]} Be7 {[%emt 0:00:00]} 3. Nf3 {[%emt 0:00:05]} d6 {[%emt 0:00:02]} 4. e3 {[%emt 0:00:12]} Nf6 {[%emt 0:00:02]} 5. Bd3 {[%emt 0:00:14]} O-O {[%emt 0:00:04]} 6. h3 {[%emt 0:00:08]} Nd5 {[%emt 0:00:08]} 7. Bg3 {[%emt 0:00:05]} f6 {[%emt 0:00:04]} 8. c4 {[%emt 0:00:09]} Nb4 {[%emt 0:00:07]} 9. Be2 {[%emt 0:00:10]} c6 {[%emt 0:00:09]} 10. a3 {[%emt 0:00:05]} N4a6 {[%emt 0:00:01]} 11. O-O {[%emt 0:00:32]} Nd7 {[%emt 0:00:01]} 12. Nc3 {[%emt 0:00:10]} e5 {[%emt 0:00:03]} 13. b4 {[%emt 0:00:20]} Nc7 {[%emt 0:00:13]} 14. Qb3 {[%emt 0:00:16]} Kh8 {[%emt 0:00:04]} 15. Rad1 {[%emt 0:00:13]} Qe8 {[%emt 0:00:13]} 16. Rfe1 {[%emt 0:02:35]} a6 {[%emt 0:00:10]} 17. Bd3 {[%emt 0:00:59]} g6 {[%emt 0:00:15]} 18. a4 {[%emt 0:02:43]} Bd8 {[%emt 0:00:31]} 19. Ne4 {[%emt 0:00:27]} Qe6 {[%emt 0:00:25]} 20. Qc3 {[%emt 0:01:07]} f5 {[%emt 0:00:21]} 21. Neg5 {[%emt 0:00:51]} Bxg5 {[%emt 0:00:16]} 22. Nxg5 {[%emt 0:00:02]} Qf6 {[%emt 0:00:02]} 23. Bh4 {[%emt 0:02:20]} h6 {[%emt 0:00:07]} 24. Nf3 {[%emt 0:00:05]} g5 {[%emt 0:00:08]} 25. dxe5 {[%emt 0:00:34]} dxe5 26. Bg3 e4 {[%emt 0:00:34]} 27. Qxf6+ {[%emt 0:00:36]} Nxf6 {[%emt 0:00:03]} 28. Bxc7 {[%emt 0:00:06]} exf3 {[%emt 0:00:31]} 29. Bf1 {[%emt 0:00:52]} fxg2 {[%emt 0:00:10]} 30. Bxg2 {[%emt 0:00:05]} Rf7 {[%emt 0:00:11]} 31. Be5 {[%emt 0:00:08]} Kh7 {[%emt 0:00:01]} 32. Rd8 {[%emt 0:00:24]} Nd7 {[%emt 0:00:05]} 33. Bc3 {[%emt 0:00:25]} Kg6 {[%emt 0:00:12]} 34. Rd1 {[%emt 0:00:03]} Kh5 {[%emt 0:00:11]} 35. Bf3+ {[%emt 0:00:28]} g4 {[%emt 0:00:02]} 36. Be2 {[%emt 0:00:22]} Nb6 {[%emt 0:00:23]} 37. Rg8 {[%emt 0:00:30]} Be6 {[%emt 0:00:16]} 38. Rxa8 {[%emt 0:00:12]} Nxa8 {[%emt 0:00:01]} 39. Rd6 {[%emt 0:00:05]} Bd7 {[%emt 0:00:07]} 40. Bg7 {[%emt 0:00:11]} Rxg7 {[%emt 0:00:07]} 41. Kh2 {[%emt 0:00:10]} Kg5 {[%emt 0:00:21]} 42. a5 {[%emt 0:00:17]} Nc7 {[%emt 0:00:06]} 43. f4+ {[%emt 0:00:36]} gxf3 44. Bxf3 Ne8 {[%emt 0:00:34]} 45. h4+ {[%emt 0:00:23]} Kxh4 {[%emt 0:00:15]} 46. Rxh6+ {[%emt 0:00:03]} Kg5 {[%emt 0:00:00]} 47. Rh8 {[%emt 0:00:28]} Nf6 {[%emt 0:00:01]} 48. Rb8 {[%emt 0:00:11]} Rh7+ {[%emt 0:00:02]} 49. Kg2 {[%emt 0:00:08]} Be6 {[%emt 0:00:25]} 50. b5 {[%emt 0:00:35]} axb5 {[%emt 0:00:04]} 51. cxb5 {[%emt 0:00:02]} Bd5 {[%emt 0:00:03]} 52. bxc6 {[%emt 0:00:13]} bxc6 {[%emt 0:00:03]} 53. Bxd5 {[%emt 0:01:25]} Nxd5 {[%emt 0:00:02]} 54. Rc8 {[%emt 0:00:19]} Nxe3+ {[%emt 0:00:05]} 55. Kf3 {[%emt 0:00:03]} Nd5 {[%emt 0:00:24]} 56. Rxc6 {[%emt 0:00:06]} Rh3+ {[%emt 0:00:08]} 57. Kf2 {[%emt 0:00:09]} Ra3 {[%emt 0:00:02]} 58. Rc5 {[%emt 0:00:06]} Nf4 {[%emt 0:00:03]} 59. Rb5 {[%emt 0:00:12]} Kg4 {[%emt 0:00:02]} 60. Rb8 {[%emt 0:00:13]} Rxa5 {[%emt 0:00:07]} 61. Rg8+ {[%emt 0:00:03]} Kh4 {[%emt 0:00:15]} 62. Kf3 {[%emt 0:00:04]} Nh5 {[%emt 0:00:07]} 63. Rf8 {[%emt 0:00:15]} Ra3+ {[%emt 0:00:03]} 64. Kf2 {[%emt 0:00:03]} f4 {[%emt 0:00:02]} 65. Rg8 {[%emt 0:00:10]} Kh3 {[%emt 0:00:08]} 66. Rh8 {[%emt 0:00:13]} Kg4 {[%emt 0:00:17]} 67. Rg8+ {[%emt 0:00:12]} Kf5 {[%emt 0:00:02]} 68. Rf8+ {[%emt 0:00:03]} Nf6 {[%emt 0:00:01]} 69. Rf7 {[%emt 0:00:13]} f3 {[%emt 0:00:13]} 70. Rb7 {[%emt 0:00:34]} Kf4 {[%emt 0:00:15]} 71. Rf7 {[%emt 0:00:06]} Ra2+ {[%emt 0:00:10]} 72. Kf1 {[%emt 0:00:05]} Ke5 {[%emt 0:00:07]} 73. Re7+ {[%emt 0:00:07]} Kf5 {[%emt 0:00:07]} 74. Rf7 {[%emt 0:00:08]} Kg6 {[%emt 0:00:02]} 75. Re7 {[%emt 0:00:07]} Kg5 {[%emt 0:00:05]} 76. Rg7+ {[%emt 0:00:05]} Kf5 {[%emt 0:00:05]} 77. Rf7 {[%emt 0:00:01]} Ke6 {[%emt 0:00:05]} 78. Rg7 {[%emt 0:00:17]} Kd5 {[%emt 0:00:42]} 79. Rf7 {[%emt 0:00:05]} Ke5 {[%emt 0:00:02]} 80. Rf8 {[%emt 0:00:10]} Rb2 {[%emt 0:00:14]} 81. Rf7 {[%emt 0:00:04]} Ra2 {[%emt 0:00:09]} 82. Re7+ {[%emt 0:00:06]} Kd4 {[%emt 0:00:06]} 83. Rf7 {[%emt 0:00:03]} Ke3 {[%emt 0:00:07]} 84. Kg1 {[%emt 0:00:42]} f2+ {[%emt 0:00:19]} 85. Kg2 {[%emt 0:00:05]} Ne4 {[%emt 0:01:01]} 86. Rf3+ {[%emt 0:00:23]} Ke2 {[%emt 0:00:15]} 87. Rf4 {[%emt 0:00:11]} Ke3 {[%emt 0:00:34]} 88. Rf3+ {[%emt 0:00:10]} Kd4 {[%emt 0:00:07]} 89. Rf4 {[%emt 0:00:17]} Ke5 {[%emt 0:00:02]} 90. Rf8 {[%emt 0:00:11]} Re2 {[%emt 0:00:09]} 91. Re8+ {[%emt 0:00:15]} Kd4 {[%emt 0:00:02]} 92. Rd8+ {[%emt 0:00:09]} Ke3 {[%emt 0:00:02]} 93. Rf8 {[%emt 0:00:07]} Re1 {[%emt 0:00:06]} 94. Rf3+ {[%emt 0:00:01]} Kd4 {[%emt 0:00:15]} 95. Rf4 {[%emt 0:00:06]} Ke5 {[%emt 0:00:04]} 96. Rf8 {[%emt 0:00:08]} Rg1+ {[%emt 0:00:15]} 97. Kh2 {[%emt 0:00:22]} f1=Q {[%emt 0:00:04]} 98. Re8+ {[%emt 0:00:05]} Kd4 {[%emt 0:00:02]} 99. Rxe4+ {[%emt 0:00:04]} Kd3 {[%emt 0:00:15]} 100. Re3+ {[%emt 0:00:06]} Kd2 {[%emt 0:00:05]} 101. Rd3+ {[%emt 0:00:05]} Qxd3 {[%emt 0:00:04]} 0-1

[Event "African Games Rapid Open 2019"]
[Site "Casablanca"]
[Date "2019.08.26"]
[Round "2.20"]
[White "Koualet-Bebondi, Vianney Archeveq"]
[Black "Yahi, Mohamed Salem"]
[Result "1/2-1/2"]
[ECO "B00"]
[WhiteElo "1679"]
[BlackElo "1928"]
[Annotator "NA"]
[PlyCount "73"]
[EventDate "2019.08.26"]
[EventType "team-tourn"]
[EventCountry "MAR"]
[SourceTitle "playchess.com"]
[Source "ChessBase"]
[SourceQuality "1"]
[TimeControl "900+10"]

1. e4 {[%emt 0:00:00]} d6 {[%emt 0:00:00]} 2. Be2 {[%emt 0:00:00]} Nf6 {[%emt 0:00:00]} 3. d3 {[%emt 0:00:04]} g6 {[%emt 0:00:09]} 4. Nf3 {[%emt 0:00:01]} Bg7 {[%emt 0:00:05]} 5. O-O {[%emt 0:00:04]} O-O {[%emt 0:00:12]} 6. c3 {[%emt 0:00:01]} e5 {[%emt 0:00:13]} 7. Bg5 {[%emt 0:00:12]} h6 {[%emt 0:00:52]} 8. Bxf6 {[%emt 0:00:02]} Qxf6 {[%emt 0:00:14]} 9. d4 Bg4 {[%emt 0:00:25]} 10. dxe5 {[%emt 0:00:23]} dxe5 {[%emt 0:00:08]} 11. h3 {[%emt 0:00:03]} Bxf3 {[%emt 0:00:05]} 12. Bxf3 {[%emt 0:00:02]} Nc6 {[%emt 0:00:07]} 13. Qc2 {[%emt 0:00:22]} Rad8 {[%emt 0:00:09]} 14. Na3 {[%emt 0:00:13]} a6 {[%emt 0:00:11]} 15. Be2 {[%emt 0:00:37]} Qg5 {[%emt 0:01:22]} 16. Nc4 {[%emt 0:00:22]} b5 {[%emt 0:00:09]} 17. Ne3 {[%emt 0:00:11]} Ne7 {[%emt 0:00:42]} 18. Rad1 {[%emt 0:00:09]} f5 {[%emt 0:00:41]} 19. Rxd8 {[%emt 0:00:05]} Rxd8 {[%emt 0:00:02]} 20. exf5 {[%emt 0:00:11]} gxf5 {[%emt 0:00:16]} 21. Rd1 {[%emt 0:00:36]} Rd6 {[%emt 0:00:47]} 22. Rxd6 {[%emt 0:01:00]} cxd6 {[%emt 0:00:02]} 23. Qb3+ {[%emt 0:00:06]} Kh8 {[%emt 0:00:20]} 24. Qa3 {[%emt 0:00:27]} f4 {[%emt 0:00:14]} 25. Nf1 {[%emt 0:00:55]} e4 {[%emt 0:00:26]} 26. f3 {[%emt 0:00:19]} exf3 {[%emt 0:00:11]} 27. Bxf3 {[%emt 0:00:06]} Qc5+ {[%emt 0:00:12]} 28. Qxc5 {[%emt 0:00:09]} dxc5 {[%emt 0:00:01]} 29. Bb7 {[%emt 0:00:03]} a5 {[%emt 0:00:12]} 30. Nd2 {[%emt 0:00:12]} b4 {[%emt 0:00:04]} 31. Ne4 {[%emt 0:00:25]} c4 {[%emt 0:00:16]} 32. Ba6 {[%emt 0:00:15]} bxc3 {[%emt 0:00:35]} 33. bxc3 {[%emt 0:00:09]} Nd5 {[%emt 0:00:06]} 34. Bxc4 {[%emt 0:00:07]} Nxc3 {[%emt 0:00:05]} 35. Nxc3 {[%emt 0:01:07]} Bxc3 {[%emt 0:00:03]} 36. Kf2 {[%emt 0:00:01]} Kg7 {[%emt 0:00:04]} 37. h4 {[%emt 0:00:40]} 1/2-1/2

[Event "African Games Rapid Open 2019"]
[Site "Casablanca"]
[Date "2019.08.26"]
[Round "3.3"]
[White "Hamdouchi, Hicham"]
[Black "Ssegwanyi, Arthur"]
[Result "0-1"]
[ECO "C60"]
[WhiteElo "2562"]
[BlackElo "2335"]
[Annotator "ChessBase"]
[PlyCount "72"]
[EventDate "2019.08.26"]
[EventType "team-tourn"]
[EventCountry "MAR"]
[SourceTitle "playchess.com"]
[Source "ChessBase"]
[SourceQuality "1"]
[TimeControl "900+10"]

1. e4 {[%emt 0:00:00]} e5 {[%emt 0:00:00]} 2. Nf3 {[%emt 0:00:00]} Nc6 {[%emt 0:00:00]} 3. Bb5 {[%emt 0:00:00]} Nge7 {[%emt 0:00:00]} 4. O-O {[%emt 0:00:20]} g6 {[%emt 0:00:00]} 5. c3 {[%emt 0:00:43]} Bg7 {[%emt 0:00:26]} 6. d4 {[%emt 0:00:02]} exd4 {[%emt 0:00:02]} 7. cxd4 {[%emt 0:00:03]} a6 {[%emt 0:00:04]} 8. Bc4 {[%emt 0:00:07]} b5 {[%emt 0:00:58]} 9. Bb3 {[%emt 0:00:12]} d6 {[%emt 0:00:21]} 10. d5 {[%emt 0:00:57]} Na5 {[%emt 0:00:07]} 11. Bd2 {[%emt 0:00:46]} Nxb3 {[%emt 0:01:48]} 12. axb3 {[%emt 0:01:46]} O-O {[%emt 0:02:13]} 13. Bc3 {[%emt 0:00:11]} c5 {[%emt 0:00:05]} 14. dxc6 {[%emt 0:00:24]} Nxc6 {[%emt 0:00:07]} 15. Bxg7 {[%emt 0:00:42]} Kxg7 {[%emt 0:00:02]} 16. Nc3 {[%emt 0:00:02]} Ne5 {[%emt 0:00:57]} 17. Nd4 {[%emt 0:01:24]} Bb7 {[%emt 0:00:33]} 18. f4 {[%emt 0:00:16]} Qb6 {[%emt 0:00:43]} 19. Kh1 {[%emt 0:00:04]} Nd7 {[%emt 0:00:35]} 20. Qd2 {[%emt 0:02:37]} Rad8 {[%emt 0:01:46]} 21. Qf2 {[%emt 0:00:57]} Kg8 {[%emt 0:00:21]} 22. f5 {[%emt 0:01:00]} Nc5 {[%emt 0:00:51]} 23. f6 {[%emt 0:00:54]} Ne6 {[%emt 0:02:12]} 24. Rad1 {[%emt 0:00:10]} Qc5 {[%emt 0:00:59]} 25. Nd5 {[%emt 0:01:34]} Bxd5 {[%emt 0:00:48]} 26. exd5 {[%emt 0:00:02]} Qxd5 {[%emt 0:00:40]} 27. Nxe6 {[%emt 0:00:36]} Qxe6 {[%emt 0:00:02]} 28. Qf4 {[%emt 0:00:02]} Kh8 {[%emt 0:00:22]} 29. Rde1 {[%emt 0:03:11]} Qd5 {[%emt 0:01:15]} 30. Qh6 {[%emt 0:00:05]} Rg8 {[%emt 0:00:06]} 31. Re7 {[%emt 0:00:40]} g5 {[%emt 0:00:27]} 32. Rfe1 {[%emt 0:00:04]} Qxb3 {[%emt 0:00:06]} 33. h3 {[%emt 0:00:16]} g4 {[%emt 0:00:29]} 34. Re8 {[%emt 0:00:11]} Rdxe8 {[%emt 0:00:07]} 35. Rxe8 {[%emt 0:00:01]} Qd1+ {[%emt 0:00:02]} 36. Kh2 g3# 0-1